[Event "MČR 2022 blesk"]
[Site "Turnov, Czech Republic"]
[Date "2022.09.10"]
[Round "1.1"]
[White "Zvara, Petr"]
[Black "Plat, Vojtech"]
[Result "0-1"]
[TimeControl "2x 3 min + 2s/move"]
[WhiteElo "2347"]
[BlackElo "2484"]

1. Nf3 {[%clk 00:03:03]} d6 {[%clk 00:03:03]} {[%emt 00:00:07]} 2. c4 {[%clk
00:03:04]} e5 {[%clk 00:03:04]} 3. b3 {[%clk 00:03:04]} {[%emt 00:00:05]} Nf6
{[%clk 00:03:05]} 4. Bb2 {[%clk 00:03:04]} Be7 {[%clk 00:03:06]} 5. Nc3 {[%clk
00:02:58]} {[%emt 00:00:09]} O-O {[%clk 00:03:07]} 6. e4 {[%clk 00:02:57]}
{[%emt 00:00:05]} c6 {[%clk 00:03:07]} 7. Be2 {[%clk 00:02:57]} {[%emt
00:00:07]} Nbd7 {[%clk 00:03:08]} 8. O-O {[%clk 00:02:57]} a5 {[%clk 00:03:09]}
9. d4 {[%clk 00:02:57]} Re8 {[%clk 00:03:08]} {[%emt 00:00:04]} 10. Re1 {[%clk
00:02:57]} {[%emt 00:00:12]} exd4 {[%clk 00:03:09]} 11. Nxd4 {[%clk 00:02:57]}
Bf8 {[%clk 00:03:10]} 12. Bf1 {[%clk 00:02:58]} Nc5 {[%clk 00:03:11]} {[%emt
00:00:05]} 13. Qc2 {[%clk 00:02:50]} Qb6 {[%clk 00:03:10]} {[%emt 00:00:05]} 14.
Rad1 {[%clk 00:02:48]} {[%emt 00:00:05]} a4 {[%clk 00:02:50]} {[%emt 00:00:19]}
15. h3 {[%clk 00:02:46]} {[%emt 00:00:07]} axb3 {[%clk 00:02:48]} {[%emt
00:00:08]} 16. axb3 {[%clk 00:02:46]} Bd7 {[%clk 00:02:43]} {[%emt 00:00:05]}
17. g3 {[%clk 00:02:28]} {[%emt 00:00:21]} g6 {[%clk 00:02:41]} 18. Bg2 {[%clk
00:02:29]} {[%emt 00:00:05]} Bg7 {[%clk 00:02:42]} 19. Kh2 {[%clk 00:01:49]}
{[%emt 00:00:36]} h5 {[%clk 00:02:41]} {[%emt 00:00:11]} 20. Ra1 {[%clk
00:01:04]} {[%emt 00:00:45]} Rxa1 {[%clk 00:02:37]} {[%emt 00:00:10]} 21. Bxa1
{[%clk 00:01:04]} h4 {[%clk 00:02:37]} 22. g4 {[%clk 00:01:03]} Nxg4+ {[%clk
00:02:37]} {[%emt 00:00:08]} 23. hxg4 {[%clk 00:01:03]} Bxd4 {[%clk 00:02:38]}
24. Nd5 {[%clk 00:01:03]} cxd5 {[%clk 00:02:34]} {[%emt 00:00:06]} 25. Bxd4
{[%clk 00:01:04]} dxe4 {[%clk 00:02:24]} {[%emt 00:00:10]} 26. Qc1 {[%clk
00:00:41]} {[%emt 00:00:30]} d5 {[%clk 00:01:40]} {[%emt 00:00:41]} 27. Qh6
{[%clk 00:00:35]} {[%emt 00:00:11]} Qd6+ {[%clk 00:01:42]} 28. Kh1 {[%clk
00:00:31]} {[%emt 00:00:06]} Re5 {[%clk 00:01:43]} 29. Qf4 {[%clk 00:00:20]}
{[%emt 00:00:12]} Nd3 {[%clk 00:01:23]} {[%emt 00:00:22]} 30. Bxe5 Nxe5 {[%clk
00:01:24]} 31. cxd5 {[%clk 00:00:17]} {[%emt 00:00:05]} f6 {[%clk 00:01:04]}
{[%emt 00:00:17]} 32. Ra1 {[%clk 00:00:17]} {[%emt 00:00:07]} g5 {[%clk
00:01:00]} {[%emt 00:00:05]} 33. Qxe4 {[%clk 00:00:17]} {[%emt 00:00:08]} Kg7
{[%clk 00:01:01]} 34. Ra8 {[%clk 00:00:17]} Nxg4 {[%clk 00:01:00]} 35. Kg1
{[%clk 00:00:09]} {[%emt 00:00:12]} Qh2+ {[%clk 00:00:53]} {[%emt 00:00:07]} 36.
Kf1 {[%clk 00:00:10]} Bb5+ {[%clk 00:00:55]} 37. Ke1 {[%clk 00:00:11]} {[%emt
00:00:08]} Qg1+ {[%clk 00:00:56]} 38. Kd2 {[%clk 00:00:12]} Qxf2+ {[%clk
00:00:57]} 39. Kc3 {[%clk 00:00:14]} Qe3+ {[%clk 00:00:52]} {[%emt 00:00:04]}
40. Qxe3 {[%emt 00:00:05]} Nxe3 {[%clk 00:00:53]} 41. Be4 {[%clk 00:00:14]} f5
{[%clk 00:00:54]} 42. Bd3 {[%clk 00:00:14]} Bd7 {[%clk 00:00:46]} {[%emt
00:00:13]} 43. Kd4 {[%clk 00:00:15]} {[%emt 00:00:04]} f4 {[%clk 00:00:46]} 44.
Rb8 {[%clk 00:00:16]} Kf6 {[%clk 00:00:43]} {[%emt 00:00:05]} 45. Rxb7 {[%clk
00:00:16]} Bf5 {[%clk 00:00:43]} {[%emt 00:00:04]} 46. Bxf5 Nxf5+ {[%clk
00:00:45]} 47. Ke4 {[%clk 00:00:18]} Nd6+ {[%clk 00:00:46]} 48. Kd4 {[%emt
00:00:13]} Ke5+ 0-1

[Event "MČR 2022 blesk"]
[Site "Turnov, Czech Republic"]
[Date "2022.09.10"]
[Round "1.2"]
[White "Cerveny, Martin"]
[Black "Dubansky, Bohuslav"]
[Result "1-0"]
[TimeControl "2x 3 min + 2s/move"]
[WhiteElo "2288"]
[BlackElo "2220"]

1. d4 {[%clk 00:03:02]} d5 {[%clk 00:03:04]} 2. c4 {[%clk 00:03:03]} e6 {[%clk
00:03:05]} 3. Nc3 {[%clk 00:03:04]} {[%emt 00:00:08]} c5 {[%clk 00:03:06]} 4.
cxd5 {[%clk 00:03:05]} exd5 {[%clk 00:03:07]} 5. Nf3 {[%clk 00:03:06]} Nc6
{[%clk 00:03:09]} 6. g3 {[%emt 00:00:03]} Nf6 {[%clk 00:03:10]} 7. Bg2 {[%clk
00:03:08]} Be7 {[%clk 00:03:11]} 8. O-O {[%clk 00:03:09]} O-O {[%clk 00:03:13]}
{[%emt 00:00:04]} 9. Bg5 {[%clk 00:03:10]} cxd4 {[%clk 00:03:14]} 10. Nxd4
{[%clk 00:03:11]} {[%emt 00:00:08]} h6 {[%clk 00:03:15]} 11. Be3 {[%clk
00:03:11]} Ne5 {[%clk 00:03:17]} 12. h3 {[%clk 00:02:58]} {[%emt 00:00:07]} Re8
{[%clk 00:03:15]} {[%emt 00:00:05]} 13. Bf4 {[%clk 00:02:39]} {[%emt 00:00:18]}
Ng6 {[%clk 00:03:16]} {[%emt 00:00:06]} 14. Be3 {[%clk 00:02:37]} {[%emt
00:00:04]} Ne5 {[%clk 00:03:17]} 15. Bf4 {[%clk 00:02:36]} Ng6 {[%clk
00:03:18]} 16. Bc1 {[%clk 00:02:36]} {[%emt 00:00:05]} a6 {[%clk 00:03:03]}
{[%emt 00:00:15]} 17. b3 {[%clk 00:02:35]} {[%emt 00:00:11]} Qa5 {[%clk
00:03:04]} 18. Bb2 {[%clk 00:02:35]} Bd7 {[%clk 00:03:00]} {[%emt 00:00:04]} 19.
a3 {[%clk 00:02:32]} {[%emt 00:00:05]} Rad8 {[%clk 00:02:38]} {[%emt 00:00:22]}
20. b4 {[%clk 00:02:33]} Qc7 {[%clk 00:02:39]} 21. Rc1 {[%emt 00:00:05]} Qb8 22.
Na4 {[%clk 00:02:30]} {[%emt 00:00:06]} Ne4 {[%clk 00:02:13]} {[%emt 00:00:33]}
23. e3 {[%clk 00:02:20]} {[%emt 00:00:12]} Ne5 {[%clk 00:01:40]} {[%emt
00:00:30]} 24. Nb6 {[%clk 00:02:16]} {[%emt 00:00:07]} Bb5 {[%clk 00:01:02]}
{[%emt 00:00:38]} 25. Nxb5 {[%clk 00:01:59]} {[%emt 00:00:19]} axb5 {[%clk
00:01:03]} 26. Nxd5 {[%clk 00:01:40]} {[%emt 00:00:21]} Ng5 {[%clk 00:00:44]}
{[%emt 00:00:21]} 27. Nxe7+ {[%clk 00:01:36]} {[%emt 00:00:09]} Rxe7 {[%clk
00:00:46]} 28. Bxe5 {[%clk 00:01:36]} Rxe5 {[%clk 00:00:42]} {[%emt 00:00:05]}
29. Qg4 {[%clk 00:01:36]} {[%emt 00:00:06]} Ree8 {[%clk 00:00:27]} {[%emt
00:00:14]} 30. Rc5 {[%clk 00:01:31]} {[%emt 00:00:06]} Qa7 {[%clk 00:00:25]}
{[%emt 00:00:10]} 31. Rxb5 {[%clk 00:01:25]} {[%emt 00:00:05]} Qxa3 {[%clk
00:00:26]} 32. Rxb7 {[%clk 00:01:26]} {[%emt 00:00:05]} Rd2 {[%clk 00:00:26]}
33. h4 {[%clk 00:01:22]} {[%emt 00:00:05]} Ne6 {[%clk 00:00:27]} 34. Qf5 {[%clk
00:01:11]} {[%emt 00:00:12]} Rf8 {[%clk 00:00:23]} {[%emt 00:00:06]} 35. Bd5
{[%clk 00:01:11]} Nd8 {[%clk 00:00:22]} {[%emt 00:00:10]} 36. Rb8 {[%clk
00:01:05]} {[%emt 00:00:06]} Qb2 {[%clk 00:00:13]} {[%emt 00:00:07]} 37. Qd7
{[%clk 00:00:58]} {[%emt 00:00:10]} Ne6 {[%clk 00:00:08]} {[%emt 00:00:24]} 38.
Rxf8+ 1-0

[Event "MČR 2022 blesk"]
[Site "Turnov, Czech Republic"]
[Date "2022.09.10"]
[Round "1.3"]
[White "Micanek, Tomas"]
[Black "Balacek, Tadeas"]
[Result "0-1"]
[TimeControl "2x 3 min + 2s/move"]
[WhiteElo "2014"]
[BlackElo "2257"]

1. e4 {[%clk 00:03:02]} {[%emt 00:00:05]} e6 {[%clk 00:03:02]} {[%emt
00:00:11]} 2. d4 {[%clk 00:03:01]} d5 {[%clk 00:03:03]} 3. Nd2 {[%clk
00:03:02]} c5 {[%clk 00:03:01]} {[%emt 00:00:28]} 4. Ngf3 {[%clk 00:03:03]}
cxd4 {[%clk 00:03:01]} 5. exd5 {[%clk 00:02:56]} Qxd5 {[%clk 00:03:01]} 6. Bd3
{[%clk 00:02:56]} Nf6 {[%clk 00:02:56]} 7. Nb3 {[%clk 00:02:54]} {[%emt
00:00:07]} Nc6 {[%clk 00:02:50]} 8. Nbxd4 {[%clk 00:02:45]} {[%emt 00:00:07]}
Nxd4 {[%clk 00:02:26]} {[%emt 00:00:27]} 9. Nxd4 {[%clk 00:02:45]} Qxg2 {[%clk
00:02:21]} {[%emt 00:00:10]} 10. Rf1 {[%clk 00:02:33]} {[%emt 00:00:21]} Be7
{[%clk 00:01:59]} {[%emt 00:00:14]} 11. Bf4 {[%clk 00:01:50]} {[%emt 00:00:44]}
Bd7 {[%clk 00:01:41]} {[%emt 00:00:25]} 12. Qe2 {[%clk 00:01:39]} {[%emt
00:00:10]} Nd5 {[%clk 00:01:16]} {[%emt 00:00:26]} 13. Be5 {[%clk 00:01:15]}
{[%emt 00:00:37]} Qg5 {[%clk 00:00:59]} {[%emt 00:00:08]} 14. Nf3 {[%clk
00:01:04]} {[%emt 00:00:21]} Qh5 {[%clk 00:00:52]} {[%emt 00:00:12]} 15. O-O-O
{[%clk 00:00:49]} {[%emt 00:00:07]} f6 {[%clk 00:00:39]} {[%emt 00:00:21]} 16.
Bg3 {[%clk 00:00:47]} Rc8 {[%clk 00:00:27]} {[%emt 00:00:12]} 17. Kb1 {[%clk
00:00:38]} {[%emt 00:00:10]} Qf7 {[%clk 00:00:24]} {[%emt 00:00:06]} 18. Bb5
{[%clk 00:00:35]} {[%emt 00:00:14]} Bc6 {[%clk 00:00:13]} {[%emt 00:00:06]} 19.
Rfe1 {[%clk 00:00:34]} {[%emt 00:00:05]} O-O {[%clk 00:00:11]} {[%emt
00:00:05]} 20. Qxe6 {[%clk 00:00:33]} Qxe6 {[%clk 00:00:06]} {[%emt 00:00:08]}
21. Rxe6 {[%clk 00:00:34]} Bxb5 {[%clk 00:00:05]} 22. Rxd5 {[%clk 00:00:34]}
{[%emt 00:00:10]} Bc4 {[%clk 00:00:05]} 23. Rxe7 {[%clk 00:00:28]} {[%emt
00:00:06]} Bxd5 {[%clk 00:00:06]} 24. Nd4 {[%clk 00:00:29]} {[%emt 00:00:08]}
Rfe8 {[%clk 00:00:07]} 25. Nf5 {[%clk 00:00:25]} Kf8 {[%clk 00:00:05]} {[%emt
00:00:21]} 26. Rxe8+ {[%clk 00:00:21]} {[%emt 00:00:04]} Rxe8 {[%clk 00:00:06]}
27. Ne3 {[%clk 00:00:21]} Be6 {[%clk 00:00:07]} 28. Bd6+ {[%clk 00:00:23]} Kf7
{[%clk 00:00:08]} {[%emt 00:00:05]} 29. f4 {[%clk 00:00:24]} Rd8 {[%clk
00:00:09]} 30. f5 {[%clk 00:00:22]} Rxd6 {[%clk 00:00:10]} 31. fxe6+ {[%clk
00:00:23]} Rxe6 {[%clk 00:00:11]} {[%emt 00:00:05]} 0-1

[Event "MČR 2022 blesk"]
[Site "Turnov, Czech Republic"]
[Date "2022.09.10"]
[Round "1.5"]
[White "Stocek, Jiri"]
[Black "Sabol, Marian"]
[Result "1/2-1/2"]
[TimeControl "2x 3 min + 2s/move"]
[WhiteElo "2384"]
[BlackElo "2213"]

1. d4 {[%clk 00:03:02]} Nf6 {[%clk 00:03:03]} 2. Bg5 {[%clk 00:03:02]} c5
{[%clk 00:03:04]} 3. d5 {[%clk 00:03:03]} {[%emt 00:00:13]} Qb6 {[%clk
00:03:00]} 4. Bxf6 {[%clk 00:03:03]} gxf6 {[%clk 00:03:00]} 5. Qc1 {[%clk
00:03:01]} {[%emt 00:00:04]} f5 {[%clk 00:03:01]} 6. e3 {[%clk 00:02:57]} Qg6
{[%clk 00:02:36]} {[%emt 00:00:24]} 7. Ne2 {[%clk 00:02:39]} {[%emt 00:00:20]}
e5 {[%clk 00:02:31]} {[%emt 00:00:12]} 8. Nbc3 {[%clk 00:02:26]} {[%emt
00:00:17]} a6 {[%clk 00:02:24]} {[%emt 00:00:07]} 9. g3 {[%clk 00:02:24]} h5
{[%clk 00:02:22]} {[%emt 00:00:05]} 10. h4 {[%clk 00:02:24]} Bh6 {[%clk
00:02:11]} {[%emt 00:00:14]} 11. a4 {[%clk 00:02:23]} {[%emt 00:00:09]} d6
{[%clk 00:02:12]} 12. Bh3 {[%clk 00:02:21]} Nd7 {[%clk 00:02:11]} {[%emt
00:00:04]} 13. a5 {[%clk 00:02:12]} {[%emt 00:00:08]} Nf6 {[%clk 00:02:07]}
{[%emt 00:00:05]} 14. Qd1 {[%clk 00:02:09]} {[%emt 00:00:09]} Bd7 {[%clk
00:02:05]} 15. Na4 {[%clk 00:02:06]} {[%emt 00:00:05]} Ng4 {[%clk 00:01:13]}
{[%emt 00:00:54]} 16. Nb6 {[%clk 00:01:59]} {[%emt 00:00:09]} Rd8 {[%clk
00:01:15]} 17. Nxd7 {[%clk 00:01:48]} {[%emt 00:00:14]} Rxd7 {[%clk 00:01:16]}
18. Bxg4 {[%clk 00:01:44]} {[%emt 00:00:09]} fxg4 {[%clk 00:01:14]} {[%emt
00:00:05]} 19. Qd2 {[%clk 00:01:40]} {[%emt 00:00:05]} f5 {[%clk 00:01:10]}
{[%emt 00:00:05]} 20. b4 {[%clk 00:01:36]} {[%emt 00:00:06]} O-O {[%clk
00:01:04]} {[%emt 00:00:06]} 21. bxc5 {[%clk 00:01:35]} {[%emt 00:00:09]} dxc5
{[%clk 00:01:05]} 22. Rb1 {[%clk 00:01:35]} f4 {[%clk 00:01:02]} {[%emt
00:00:05]} 23. exf4 {[%clk 00:01:05]} {[%emt 00:00:32]} exf4 {[%clk 00:01:03]}
24. Rb6 {[%clk 00:01:03]} {[%emt 00:00:04]} Qe4 {[%clk 00:01:03]} {[%emt
00:00:04]} 25. O-O {[%clk 00:01:02]} Rxd5 {[%clk 00:00:59]} {[%emt 00:00:05]}
26. Nc3 {[%clk 00:00:58]} {[%emt 00:00:05]} Rxd2 {[%clk 00:00:42]} {[%emt
00:00:18]} 27. Nxe4 {[%clk 00:00:58]} {[%emt 00:00:06]} Re2 {[%clk 00:00:31]}
{[%emt 00:00:09]} 28. Nf6+ {[%clk 00:00:53]} {[%emt 00:00:14]} Kg7 {[%clk
00:00:06]} {[%emt 00:00:21]} 29. Nxh5+ Kh7 30. Nf6+ {[%clk 00:00:54]} {[%emt
00:00:05]} Kh8 {[%clk 00:00:07]} {[%emt 00:00:04]} 31. Nxg4 {[%emt 00:00:09]}
Bg7 32. Kg2 {[%clk 00:00:37]} {[%emt 00:00:09]} Rxc2 {[%clk 00:00:07]} {[%emt
00:00:06]} 33. Rxb7 {[%clk 00:00:27]} {[%emt 00:00:11]} Ra2 {[%clk 00:00:07]}
{[%emt 00:00:05]} 34. h5 {[%clk 00:00:25]} {[%emt 00:00:08]} Rxa5 {[%clk
00:00:06]} 35. h6 {[%clk 00:00:24]} {[%emt 00:00:04]} Bd4 {[%clk 00:00:07]} 36.
gxf4 {[%clk 00:00:21]} {[%emt 00:00:23]} Rxf4 {[%clk 00:00:07]} 37. Kg3 {[%clk
00:00:21]} Rf8 {[%clk 00:00:08]} 38. f3 {[%clk 00:00:19]} Ra3 {[%clk 00:00:09]}
39. Rc7 {[%emt 00:00:36]} a5 40. Kh4 {[%clk 00:00:11]} Raxf3 {[%clk 00:00:10]}
41. Rxf3 {[%clk 00:00:11]} Rxf3 {[%clk 00:00:11]} 42. Rc8+ {[%clk 00:00:09]}
Kh7 {[%clk 00:00:12]} 43. Kg5 {[%clk 00:00:10]} Rf7 {[%clk 00:00:11]} 44. Ra8
{[%clk 00:00:07]} Rc7 {[%clk 00:00:09]} 45. Rxa5 {[%clk 00:00:05]} {[%emt
00:00:13]} c4 {[%clk 00:00:11]} 46. Ra2 {[%clk 00:00:05]} c3 {[%clk 00:00:12]}
47. Rc2 {[%clk 00:00:06]} Bh8 {[%clk 00:00:07]} {[%emt 00:01:05]} 1/2-1/2

[Event "MČR 2022 blesk"]
[Site "Turnov, Czech Republic"]
[Date "2022.09.10"]
[Round "1.6"]
[White "Ptacek, Lubos"]
[Black "Neuman, Petr"]
[Result "0-1"]
[TimeControl "2x 3 min + 2s/move"]
[WhiteElo "2078"]
[BlackElo "2352"]

1. e4 {[%clk 00:03:02]} {[%emt 00:00:08]} c5 {[%clk 00:03:03]} 2. Nf3 {[%clk
00:03:02]} d6 {[%clk 00:03:04]} {[%emt 00:00:04]} 3. d4 {[%clk 00:03:03]} cxd4
{[%clk 00:03:05]} 4. Nxd4 {[%clk 00:03:05]} Nf6 {[%clk 00:03:05]} 5. Nc3 {[%clk
00:03:05]} {[%emt 00:00:08]} Nc6 {[%clk 00:03:06]} 6. Be3 {[%clk 00:03:06]} Ng4
{[%clk 00:03:07]} 7. Bb5 {[%clk 00:02:47]} {[%emt 00:00:13]} Nxe3 {[%clk
00:02:50]} {[%emt 00:00:19]} 8. fxe3 {[%clk 00:02:46]} Bd7 {[%clk 00:02:51]}
{[%emt 00:00:05]} 9. O-O {[%clk 00:02:45]} {[%emt 00:00:05]} e6 {[%clk
00:02:48]} {[%emt 00:00:06]} 10. Qf3 {[%clk 00:02:39]} {[%emt 00:00:04]} Ne5
{[%clk 00:02:46]} {[%emt 00:00:07]} 11. Qe2 {[%clk 00:02:22]} {[%emt 00:00:19]}
Be7 {[%clk 00:02:39]} {[%emt 00:00:11]} 12. Rad1 {[%clk 00:02:22]} O-O {[%clk
00:02:30]} {[%emt 00:00:12]} 13. Bxd7 {[%clk 00:02:09]} {[%emt 00:00:09]} Qxd7
{[%clk 00:02:31]} 14. b3 {[%clk 00:01:57]} {[%emt 00:00:20]} a6 {[%clk
00:02:27]} {[%emt 00:00:04]} 15. Na4 {[%clk 00:01:54]} {[%emt 00:00:09]} Qc7
{[%clk 00:02:22]} {[%emt 00:00:05]} 16. c4 {[%clk 00:01:54]} {[%emt 00:00:21]}
Rab8 {[%clk 00:02:06]} 17. Nf3 {[%clk 00:01:53]} {[%emt 00:00:05]} Bf6 {[%clk
00:01:58]} {[%emt 00:00:10]} 18. Qc2 {[%clk 00:01:35]} {[%emt 00:00:13]} b5
{[%clk 00:01:55]} {[%emt 00:00:06]} 19. Nb2 {[%clk 00:01:28]} {[%emt 00:00:08]}
Rfc8 {[%clk 00:01:51]} {[%emt 00:00:05]} 20. Nxe5 {[%clk 00:01:13]} {[%emt
00:00:18]} Bxe5 {[%clk 00:01:52]} 21. Rc1 {[%clk 00:00:56]} {[%emt 00:00:20]}
Qb6 {[%clk 00:01:27]} {[%emt 00:00:27]} 22. Nd1 {[%clk 00:00:51]} {[%emt
00:00:07]} bxc4 {[%clk 00:01:27]} {[%emt 00:00:10]} 23. bxc4 {[%clk 00:00:52]}
Qa5 {[%clk 00:01:27]} 24. Rb1 {[%clk 00:00:38]} {[%emt 00:00:14]} Rxb1 {[%clk
00:01:16]} {[%emt 00:00:13]} 25. Qxb1 {[%clk 00:00:39]} g6 {[%clk 00:00:56]}
{[%emt 00:00:23]} 26. Qb7 {[%clk 00:00:37]} {[%emt 00:00:05]} Rc7 {[%clk
00:00:57]} 27. Qb3 {[%clk 00:00:31]} {[%emt 00:00:04]} Kg7 {[%clk 00:00:54]}
{[%emt 00:00:06]} 28. Nf2 {[%clk 00:00:31]} {[%emt 00:00:06]} Qc3 {[%clk
00:00:38]} {[%emt 00:00:23]} 29. Qb6 {[%clk 00:00:29]} Qxc4 {[%clk 00:00:38]}
30. Ng4 {[%clk 00:00:27]} {[%emt 00:00:05]} Bc3 {[%clk 00:00:35]} {[%emt
00:00:05]} 31. a3 {[%clk 00:00:14]} {[%emt 00:00:14]} h5 {[%clk 00:00:36]} 32.
Nf2 {[%clk 00:00:11]} {[%emt 00:00:08]} Be5 {[%clk 00:00:36]} 33. Nh3 {[%clk
00:00:07]} {[%emt 00:00:11]} Qc6 {[%clk 00:00:37]} 34. Qb1 {[%clk 00:00:05]}
Rb7 {[%clk 00:00:36]} {[%emt 00:00:05]} 35. Qd3 {[%clk 00:00:06]} Qb5 {[%clk
00:00:36]} {[%emt 00:00:04]} 36. Qd2 {[%clk 00:00:06]} Qc4 {[%clk 00:00:28]}
{[%emt 00:00:09]} 37. Nf4 {[%clk 00:00:07]} Qxe4 {[%clk 00:00:28]} 38. Qf2
{[%clk 00:00:04]} {[%emt 00:00:16]} d5 {[%clk 00:00:19]} 39. h3 {[%clk
00:00:05]} d4 {[%clk 00:00:18]} {[%emt 00:00:05]} 40. Qe2 {[%clk 00:00:05]}
{[%emt 00:00:08]} Qxe3+ {[%clk 00:00:19]} 0-1

[Event "MČR 2022 blesk"]
[Site "Turnov, Czech Republic"]
[Date "2022.09.10"]
[Round "1.7"]
[White "Petr, Martin"]
[Black "Dosedel, Jiri"]
[Result "1-0"]
[TimeControl "2x 3 min + 2s/move"]
[WhiteElo "2446"]
[BlackElo "2017"]

1. e4 {[%clk 00:03:02]} d6 {[%clk 00:03:03]} 2. f4 {[%clk 00:03:02]} e5 {[%clk
00:03:03]} 3. Nf3 {[%clk 00:03:02]} {[%emt 00:00:08]} exf4 {[%clk 00:03:04]} 4.
Nc3 {[%clk 00:03:01]} g5 {[%clk 00:03:05]} 5. d4 {[%clk 00:02:52]} {[%emt
00:00:07]} Bg7 {[%clk 00:03:03]} {[%emt 00:00:05]} 6. g3 {[%clk 00:02:52]}
{[%emt 00:00:10]} g4 {[%clk 00:02:58]} 7. Nh4 {[%clk 00:02:52]} f3 {[%clk
00:02:43]} {[%emt 00:00:17]} 8. Be3 {[%clk 00:02:53]} {[%emt 00:00:05]} Ne7
{[%clk 00:02:42]} 9. Qd2 {[%clk 00:02:53]} {[%emt 00:00:08]} Nbc6 {[%clk
00:02:36]} {[%emt 00:00:07]} 10. O-O-O {[%clk 00:02:53]} d5 {[%clk 00:02:26]}
{[%emt 00:00:08]} 11. h3 {[%clk 00:02:28]} {[%emt 00:00:35]} h5 {[%clk
00:02:17]} {[%emt 00:00:06]} 12. Bd3 {[%clk 00:02:14]} {[%emt 00:00:17]} Nb4
{[%clk 00:02:16]} 13. Kb1 {[%clk 00:02:08]} {[%emt 00:00:13]} Nxd3 {[%clk
00:02:16]} 14. Qxd3 {[%clk 00:02:08]} Be6 {[%clk 00:01:57]} {[%emt 00:00:29]}
15. Bg5 {[%clk 00:02:02]} Qd7 {[%clk 00:01:41]} {[%emt 00:00:16]} 16. Bxe7
{[%clk 00:01:59]} {[%emt 00:00:07]} dxe4 {[%clk 00:01:30]} {[%emt 00:00:11]} 17.
Qxe4 {[%clk 00:01:44]} {[%emt 00:00:17]} Qxe7 {[%clk 00:01:30]} {[%emt
00:00:05]} 18. Qxb7 {[%clk 00:01:37]} {[%emt 00:00:10]} O-O {[%clk 00:01:27]}
{[%emt 00:00:24]} 19. hxg4 {[%clk 00:01:33]} hxg4 {[%clk 00:01:23]} 20. Qe4
{[%clk 00:01:29]} f5 {[%clk 00:01:17]} {[%emt 00:00:11]} 21. Qf4 {[%clk
00:01:16]} {[%emt 00:00:10]} Rab8 {[%clk 00:01:07]} {[%emt 00:00:09]} 22. b3
{[%clk 00:00:54]} {[%emt 00:00:24]} c5 {[%clk 00:00:59]} {[%emt 00:00:09]} 23.
Ng6 {[%clk 00:00:42]} {[%emt 00:00:18]} Qf6 {[%clk 00:00:50]} {[%emt 00:00:08]}
24. Nxf8 {[%clk 00:00:41]} {[%emt 00:00:06]} Rxf8 {[%clk 00:00:34]} {[%emt
00:00:15]} 25. Nb5 {[%clk 00:00:38]} {[%emt 00:00:05]} a6 {[%clk 00:00:33]}
{[%emt 00:00:06]} 26. Nc7 {[%clk 00:00:25]} {[%emt 00:00:22]} Bf7 {[%clk
00:00:17]} {[%emt 00:00:06]} 27. c3 {[%clk 00:00:17]} {[%emt 00:00:19]} cxd4
{[%clk 00:00:16]} 28. cxd4 {[%clk 00:00:13]} {[%emt 00:00:33]} Qc6 {[%clk
00:00:16]} 29. Rc1 {[%clk 00:00:11]} Qe4+ {[%clk 00:00:14]} 30. Qxe4 {[%clk
00:00:10]} fxe4 {[%clk 00:00:16]} 31. d5 {[%clk 00:00:10]} {[%emt 00:00:14]} e3
{[%clk 00:00:15]} 32. d6 {[%clk 00:00:11]} e2 {[%clk 00:00:11]} 33. a4 {[%clk
00:00:08]} Bxb3 {[%clk 00:00:07]} {[%emt 00:00:08]} 34. d7 {[%clk 00:00:08]}
Rd8 {[%emt 00:00:08]} 35. Nxa6 1-0

[Event "MČR 2022 blesk"]
[Site "Turnov, Czech Republic"]
[Date "2022.09.10"]
[Round "2.1"]
[White "Plat, Vojtech"]
[Black "Novotny, Michal"]
[Result "1-0"]
[TimeControl "2x 3 min + 2s/move"]
[WhiteElo "2484"]
[BlackElo "2294"]

1. d4 {[%clk 00:03:02]} {[%emt 00:00:05]} d5 {[%clk 00:03:03]} 2. c4 {[%clk
00:03:03]} {[%emt 00:00:04]} c6 {[%clk 00:03:04]} 3. Nc3 {[%clk 00:03:04]} Nf6
{[%clk 00:03:05]} 4. cxd5 {[%clk 00:03:05]} {[%emt 00:00:04]} cxd5 {[%clk
00:03:06]} 5. Bf4 {[%clk 00:03:07]} Nc6 {[%clk 00:03:03]} {[%emt 00:00:10]} 6.
e3 {[%clk 00:03:08]} a6 {[%clk 00:03:02]} 7. Rc1 {[%clk 00:03:09]} Bf5 {[%clk
00:03:03]} {[%emt 00:00:43]} 8. Qb3 {[%clk 00:03:07]} Na5 {[%clk 00:02:59]} 9.
Qa4+ {[%clk 00:03:08]} Nc6 {[%clk 00:03:01]} 10. Nf3 {[%clk 00:03:03]} Rc8
{[%clk 00:02:56]} 11. Ne5 {[%clk 00:02:59]} Bd7 {[%clk 00:02:57]} 12. Nxd7
{[%clk 00:02:59]} Qxd7 {[%clk 00:02:54]} 13. Be2 {[%clk 00:02:51]} {[%emt
00:00:16]} e6 {[%clk 00:02:53]} 14. O-O {[%clk 00:02:52]} Bd6 {[%clk 00:02:52]}
15. Bg5 {[%clk 00:02:41]} {[%emt 00:00:06]} O-O {[%clk 00:02:36]} {[%emt
00:00:27]} 16. Bxf6 {[%clk 00:02:42]} gxf6 {[%clk 00:02:37]} 17. f4 {[%clk
00:02:38]} {[%emt 00:00:05]} f5 {[%clk 00:02:34]} {[%emt 00:00:04]} 18. Qd1
{[%clk 00:02:39]} Kh8 19. a3 {[%clk 00:02:37]} {[%emt 00:00:15]} Rg8 {[%clk
00:02:34]} 20. Bd3 {[%clk 00:02:38]} Rg4 {[%clk 00:02:33]} 21. g3 {[%clk
00:02:21]} {[%emt 00:00:14]} Rcg8 {[%clk 00:02:28]} {[%emt 00:00:06]} 22. Kh1
{[%clk 00:02:22]} Qd8 {[%clk 00:02:05]} {[%emt 00:00:27]} 23. Qf3 {[%clk
00:02:20]} {[%emt 00:00:07]} Nb8 {[%clk 00:01:52]} {[%emt 00:00:12]} 24. Rg1
{[%clk 00:02:02]} {[%emt 00:00:20]} Nd7 {[%clk 00:01:52]} {[%emt 00:00:10]} 25.
Nxd5 {[%clk 00:01:58]} exd5 {[%clk 00:01:53]} 26. Qxd5 {[%clk 00:01:59]} {[%emt
00:00:05]} Qe7 {[%clk 00:01:17]} {[%emt 00:00:33]} 27. Qxf5 {[%clk 00:01:52]}
{[%emt 00:00:08]} R4g7 {[%clk 00:01:18]} 28. e4 {[%clk 00:01:49]} {[%emt
00:00:11]} Bb8 {[%clk 00:00:57]} {[%emt 00:00:19]} 29. e5 {[%clk 00:01:49]}
{[%emt 00:00:05]} Ba7 {[%clk 00:00:29]} {[%emt 00:00:26]} 30. Be4 {[%clk
00:01:44]} {[%emt 00:00:08]} Nf8 {[%clk 00:00:25]} {[%emt 00:00:06]} 31. Rgd1
{[%clk 00:01:40]} {[%emt 00:00:09]} Ne6 {[%clk 00:00:14]} {[%emt 00:00:18]} 32.
d5 {[%clk 00:01:36]} Nd4 {[%clk 00:00:14]} 33. Qh5 {[%clk 00:01:37]} f5 {[%clk
00:00:10]} {[%emt 00:00:06]} 34. Bg2 {[%clk 00:01:30]} {[%emt 00:00:09]} Rf8
{[%clk 00:00:08]} {[%emt 00:00:06]} 35. Rc4 {[%clk 00:01:24]} {[%emt 00:00:05]}
Rgf7 {[%clk 00:00:03]} {[%emt 00:00:13]} 36. Rcxd4 {[%clk 00:01:21]} Bxd4
{[%clk 00:00:04]} 37. Rxd4 {[%clk 00:01:22]} {[%emt 00:00:12]} Qc5 38. Qd1
{[%clk 00:01:22]} Rc8 {[%clk 00:00:07]} 39. d6 {[%clk 00:01:20]} {[%emt
00:00:04]} Rg7 {[%clk 00:00:06]} 40. e6 {[%clk 00:01:14]} {[%emt 00:00:09]} 1-0